Cogmind - Beta 13 @@@ ROGUE MODE // 2024.04.11 @ 09:32:40 Player: m1m1c Result: Core destroyed Performance ------------- Evolutions (1) 500 Regions Visited (3) 600 Robots Destroyed (19) 95 Value Destroyed (496) 496 Prototype IDs (0) 0 Alien Tech Used (0) 0 Bonus (21) 21 TOTAL SCORE: 1712 Bonus ------- Follower Combat Kills 21 Cogmind --------- Core Integrity 0/400 Matter 300/300 Energy 100/100 System Corruption 6% Temperature Cool (0) Movement Core (50) Location -9/Materials Parts ------- > --- POWER (1) -------- (None) > --- PROPULSION (3) --- (None) > --- UTILITY (3) ------ (None) > --- WEAPON (2) ------- (None) > --- INVENTORY (5) ---- Improved Heat Sink Medium Storage Unit Huge Storage Unit Signal Interpreter Datajack Peak State ------------ > --- POWER ------------ Ion Engine > --- PROPULSION ------- Aluminum Leg Aluminum Leg > --- UTILITY ---------- Small Storage Unit Medium Storage Unit > --- WEAPON ----------- EM Pulse Gun Grenade Launcher > --- INVENTORY -------- Huge Storage Unit Assault Rifle Datajack [Rating: 7] Favorites ----------- Power Ion Engine Engine Ion Engine Propulsion Aluminum Leg Leg Aluminum Leg Hover Unit Hover Unit Utility Medium Storage Unit Device Sensor Array Storage Medium Storage Unit Weapon Grenade Launcher Energy Gun Small Laser Ballistic Gun Assault Rifle Launcher Grenade Launcher Build | -11 -10 -10 -9 ------- Run | Yrd Mat Min Mat Slots Evolved 2 | . . . 2 Power . | . . . . Propulsion 1 | . . . 1 Utility 1 | . . . 1 Weapon . | . . . . Parts Attached 16 | 6 3 4 3 Power 2 | 1 . 1 . Engine 2 | 1 . 1 . Core . | . . . . Reactor . | . . . . Propulsion 4 | 2 . . 2 Treads . | . . . . Leg 2 | 2 . . . Wheel . | . . . . Hover 2 | . . . 2 Flight . | . . . . Utility 4 | 1 2 . 1 Device 2 | . 1 . 1 Storage 2 | 1 1 . . Processor . | . . . . Hackware . | . . . . Protection . | . . . . Artifact . | . . . . Weapon 6 | 2 1 3 . Energy Gun 2 | 1 . 1 . Energy Cannon . | . . . . Ballistic Gun 2 | 1 . 1 . Ballistic Cannon . | . . . . Launcher 2 | . 1 1 . Special Weapon . | . . . . Impact Weapon . | . . . . Slashing Weapon . | . . . . Piercing Weapon . | . . . . Special Melee Weapon . | . . . . Unidentified Prototypes . | . . . . Parts Lost 10 | . . 3 7 Power 2 | . . 1 1 Propulsion 4 | . . . 4 Utility . | . . . . Weapon 4 | . . 2 2 Highest Loss Streak 4 | . . 3 4 To Critical Strikes . | . . . . Average Slot Usage (%) 74 | . 85 83 42 Engine 12 | . 14 13 8 Leg 24 | . 28 28 11 Storage 12 | . 14 14 8 Energy Gun 12 | . 14 12 8 Ballistic Gun 4 | . . 11 . Launcher 7 | . 13 2 5 Naked Turns 35 | . . . 35 Heaviest Build 20 | 14 20 19 19 Greatest Support 20 | 20 20 20 20 Greatest Overweight (x) 5 | . . . 5 Average Overweight (x) . | . . . . Largest Inventory Capacity 10 | 8 10 10 10 Average Capacity 9 | 7 9 10 8 Most Carried 9 | . 8 9 7 Average Carried 6 | . 4 7 6 Final Capacity 10 | 8 10 10 5 Final Carried 8 | . 8 7 5 Class Distribution -------------------- 100% | Mutant Dominant Class ---------------- Mutant | -10/Materials Mutant | -10/Mines Mutant | -9/Materials Resources | -11 -10 -10 -9 ----------- Run | Yrd Mat Min Mat Matter Collected 482 | 227 55 169 31 Remotely . | . . . . Salvage Created 483 | . 249 169 65 Parts 25 | . 15 6 4 Haulers Intercepted . | . . . . Recyclers Shooed 2 | . 2 . . Parts Field Recycled . | . . . . Retrieved Matter . | . . . . Parts Self-Destructed . | . . . . Prevented . | . . . . Kills | -11 -10 -10 -9 ------- Run | Yrd Mat Min Mat Combat Hostiles Destroyed 11 | . 6 2 3 Guns 3 | . 1 2 . AOE 8 | . 5 . 3 Classes Destroyed 5 | . 5 . . Worker 1 | . 1 . . Builder 3 | . 3 . . Recycler 2 | . 1 1 . Watcher 2 | . 2 . . Grunt 11 | . 6 2 3 Best Kill Streak 13 | . 13 2 3 Combat Bots Only 6 | . 6 2 3 Max Kills in Single Turn 3 | . 3 1 3 Gunslinging . | . . . . Exploded 3 | . 1 . 3 Melee . | . . . . Uniques/NPCs Destroyed . | . . . . Combat | -11 -10 -10 -9 -------- Run | Yrd Mat Min Mat Hostile Shots Fired 121 | . 14 22 85 Missed 37 | . 5 2 30 Damage Taken 1157 | . 176 282 699 Core 467 | . 13 47 407 Absorbed by Shields . | . . . . Core Remaining (%) 88 | 100 . 76 . Volleys Fired 44 | . 18 17 9 Largest 2 | . 2 2 2 Hottest 70 | . 70 60 70 Shots Fired 65 | . 30 21 14 Gun 48 | . 18 21 9 Cannon . | . . . . Launcher 17 | . 12 . 5 Special . | . . . . Kinetic 11 | . . 11 . Thermal 13 | . . 4 9 Explosive 17 | . 12 . 5 Electromagnetic 24 | . 18 6 . Robot Hit Streak 18 | . 5 18 3 Robot Miss Streak 3 | . 2 3 1 Penetration Max . | . . . . Secondary Targets . | . . . . Shots Hit Robots 37 | . 15 16 6 Core Hits 39 | . 21 7 11 Critical Kills . | . . . . Critical Parts Destroyed . | . . . . Critical Strikes . | . . . . Melee Attacks . | . . . . Impact . | . . . . Slashing . | . . . . Piercing . | . . . . Sneak Attacks . | . . . . Combat Hostiles . | . . . . Follow-up Attacks . | . . . . Damage Inflicted 1616 | . 1126 203 287 Guns 374 | . 141 200 33 Cannons . | . . . . Explosions 1182 | . 981 . 201 Melee . | . . . . Ramming 60 | . 4 3 53 Kinetic 110 | . . 110 . Thermal 331 | . 288 10 33 Explosive 894 | . 693 . 201 Electromagnetic 221 | . 141 80 . Impact . | . . . . Slashing . | . . . . Piercing . | . . . . Highest Corruption 6 | . . . 6 Average Corruption 4 | . . . 4 Corruption Purged . | . . . . Corruption Blocked . | . . . . Effects 1 | . . . 1 Data Loss (minor) 1 | . . . 1 Overload Shots . | . . . . Overflow Damage 46 | . 44 . 2 Projectiles . | . . . . Explosions 46 | . 44 . 2 Melee . | . . . . Knockbacks . | . . . . Impact . | . . . . Kinetic . | . . . . Secondary . | . . . . Self-Inflicted Damage 112 | . 53 . 59 Shots 4 | . 2 . 2 Rammed 10 | . . . 10 Targets Rammed 12 | . 1 1 10 Kicked 2 | . 1 1 . Crushed . | . . . . Highest Temperature 138 | . 138 69 27 Average Temperature 55 | . 75 40 13 Received Heat Transfer 453 | . 75 174 204 Siege Activations . | . . . . Robots Corrupted . | . . . . Combat Hostiles . | . . . . Parts Fried . | . . . . Impact Corruptions . | . . . . Robots Melted . | . . . . Combat Hostiles . | . . . . Parts Melted 1 | . 1 . . Heat Transferred 350 | . 250 25 75 Parts Sabotaged . | . . . . Parts Stolen . | . . . . Parts Stripped . | . . . . Power Chain Reactions 1 | . 1 . . Alert | -11 -10 -10 -9 ------- Run | Yrd Mat Min Mat Peak Influence 316 | . 316 229 188 Initial 123 | . . 123 89 Average 146 | . 182 145 132 Maximum Alert Level 1 | . 1 1 . Low Security (%) 79 | 100 46 97 100 Level 1 20 | . 53 2 . Level 2 . | . . . . Level 3 . | . . . . Level 4 . | . . . . Level 5 . | . . . . High Security . | . . . . Max Security . | . . . . Squads Dispatched 3 | . 1 . 2 Investigation . | . . . . Extermination . | . . . . Reinforcement 3 | . 1 . 2 Assault . | . . . . Garrison . | . . . . Intercept . | . . . . Searches Triggered . | . . . . Construction Impeded . | . . . . Haulers Reinforced . | . . . . Active Scanning Responses . | . . . . Cargo Convoy Interrupts . | . . . . Stealth | -11 -10 -10 -9 --------- Run | Yrd Mat Min Mat Distress Signals 1 | . 1 . . Communications Jammed . | . . . . Distress Signals . | . . . . Times Spotted 29 | . 10 5 14 Peak Tracking Total 8 | . 3 3 8 Tactical Retreats 1 | . . . 1 Traps | -11 -10 -10 -9 ------- Run | Yrd Mat Min Mat Traps Triggered . | . . . . Indirectly . | . . . . Trap Hack Attempts . | . . . . Triggered . | . . . . Disarmed . | . . . . Reprogrammed . | . . . . Reused . | . . . . Traps Extracted . | . . . . Installed . | . . . . Triggered . | . . . . Machines | -11 -10 -10 -9 ---------- Run | Yrd Mat Min Mat Machines Disabled 1 | . 1 . . Max in Single Turn 1 | . 1 . . Machines Repaired . | . . . . Machines Dismantled . | . . . . Machines Sabotaged . | . . . . Overloaded Fab Kills . | . . . . Hacking | -11 -10 -10 -9 --------- Run | Yrd Mat Min Mat Machines Accessed 2 | . 2 . . Terminals 2 | . 2 . . Fabricators . | . . . . Repair Stations . | . . . . Recycling Units . | . . . . Scanalyzers . | . . . . Garrison Access . | . . . . Total Hacks 5 | . 5 . . Successful . | . . . . Failed 5 | . 5 . . Catastrophic . | . . . . Database Lockouts . | . . . . Manual . | . . . . Terminals 5 | . 5 . . Fabricators . | . . . . Repair Stations . | . . . . Recycling Units . | . . . . Scanalyzers . | . . . . Garrison Access . | . . . . Terminal Hacks . | . . . . Fabricator Hacks . | . . . . Repair Station Hacks . | . . . . Recycling Unit Hacks . | . . . . Scanalyzer . | . . . . Garrison Access Hacks . | . . . . Unauthorized Hacks . | . . . . Terminals . | . . . . Fabricators . | . . . . Repair Stations . | . . . . Recycling Units . | . . . . Scanalyzers . | . . . . Garrison Access . | . . . . Data Cores Recovered . | . . . . Used . | . . . . Hacking Detections 2 | . 2 . . Full Trace Events 1 | . 1 . . Feedback Events . | . . . . Feedback Blocked . | . . . . Robot Schematics Acquired . | . . . . Robots Built . | . . . . Authchips . | . . . . Time . | . . . . Total Robot Build Rating . | . . . . Part Schematics Acquired . | . . . . Parts Built . | . . . . Authchips . | . . . . Time . | . . . . Total Part Build Rating . | . . . . Parts Repaired . | . . . . Time . | . . . . Parts Recycled . | . . . . Recycled Matter . | . . . . Retrieved Matter . | . . . . Retrieved Components . | . . . . Parts Scanalyzed . | . . . . Part Schematics Acquired . | . . . . Parts Damaged . | . . . . Bothacking | -11 -10 -10 -9 ------------ Run | Yrd Mat Min Mat Used RIF Installer . | . . . . Robots Hacked . | . . . . Non-combat . | . . . . Combat . | . . . . Robot Hacks Applied . | . . . . Relay Couplers Released . | . . . . Fabnet Peak Effective % . | . . . . Robots Rewired . | . . . . Allies Hacked . | . . . . Hacks Repelled . | . . . . Allies | -11 -10 -10 -9 -------- Run | Yrd Mat Min Mat Total Allies 3 | . . 3 . Largest Group 3 | . . 3 . Highest-Rated Group 40 | . . 40 . Highest-Rated Ally 16 | . . 16 . Total Orders . | . . . . Ally Attacks 7 | . . 7 . Total Damage 62 | . . 62 . Kills 3 | . . 3 . Allies Corrupted . | . . . . Allies Melted . | . . . . Intel | -11 -10 -10 -9 ------- Run | Yrd Mat Min Mat Robot Analysis Total . | . . . . Derelict Logs Recovered . | . . . . Drone Launches . | . . . . Drone Recoveries . | . . . . Exploration | -11 -10 -10 -9 ------------- Run | Yrd Mat Min Mat Turns Passed 909 | 58 327 342 182 Spaces Moved 655 | 45 222 246 142 Core 73 | 6 . . 67 Treads . | . . . . Legs 570 | 39 222 246 63 Wheels . | . . . . Hover 12 | . . . 12 Flight . | . . . . Fastest Speed 50 | 50 120 120 50 Average Speed 115 | 110 120 120 102 Slowest Speed 300 | 120 120 120 300 Overloaded Moves . | . . . . Propulsion Burnouts . | . . . . Robots Hopped . | . . . . Cave-ins Triggered . | . . . . Exploration Rate (%) 24 | 3 33 44 19 Regions Visited 3 Branch Regions 1 Pre-discovered Areas . | . . . . Known Exits Taken . | . . . . Unknown Exits Taken 3 | 1 1 1 . Scrap Searched 1 | . . 1 . Spaces Dug 3 | . 3 . . Terrain Destroyed 95 | . 68 . 27 Melee . | . . . . Projectile . | . . . . AOE 95 | . 68 . 27 Terrain Rammed . | . . . . Walls Destroyed . | . . . . Machines Disabled . | . . . . Actions | -11 -10 -10 -9 --------- Run | Yrd Mat Min Mat Total 738 | 50 252 271 165 Wait . | . . . . Move 652 | 44 221 245 142 Hop . | . . . . Pick Up 9 | . 7 2 . Fast Attach 9 | 6 1 2 . Attach 5 | . 1 1 3 Detach 3 | . 2 . 1 Swap 2 | . 1 1 . Drop 3 | . . 2 1 Fire 44 | . 18 17 9 Melee . | . . . . Ram 9 | . . . 9 Kick 2 | . 1 1 . Crush . | . . . . Escape Stasis . | . . . . Rewire . | . . . . Trap . | . . . . Miscellaneous . | . . . . Route ------- -11/Scrapyard -10/Materials -10/Mines -9/Materials (discovered 1 exit: [*Sto]) History --------- Turn | Location | Event 5 | -11/Scrapyard | Discovered new exit (range 16) 59 | -11/Scrapyard | Entered Materials 300 | -10/Materials | Build established: Mutant 333 | -10/Materials | Discovered new exit (range 16) 386 | -10/Materials | Entered Mines 439 | -10/Mines | Lost 3 parts (1p2w) 624 | -10/Mines | Assisted by bots powering up and referring to "LRC-V3" 648 | -10/Mines | Discovered new exit (range 16) 728 | -10/Mines | Entered Materials 728 | -9/Materials | Evolved 2 slots: Propulsion x1, Utility x1 813 | -9/Materials | Discovered new exit (range 12) 861 | -9/Materials | Lost 3 parts (2n1w) 877 | -9/Materials | Core integrity fell below 50% 889 | -9/Materials | Core integrity fell below 20% 906 | -9/Materials | Lost 4 parts (1p2n1w) 910 | -9/Materials | Core destroyed Last Messages --------------- Hover Unit destroyed. Dropped Sensor Array. Sml. Laser destroyed. Slammed into S-10 Pest. Hover Unit destroyed. System corrupted by crushing effect (+4). Slammed into S-10 Pest. Ion Engine destroyed. Slammed into S-10 Pest. System corrupted: Component data lost. O-16 Technician: "IFF HANDSHAKE FAILED. SECURING TERMINAL." K-01 Serf collects debris. ALERT: Hostiles spotted, dispatching reinforcements to Terminal M006. Slammed into K-01 Serf. Slammed into S-10 Pest. Destabilizing: System corrupted (+2). Slammed into S-10 Pest. Destabilizing: Core damaged (-12). Map ----- +----------------------------------------------------+ | ?????????????????????????????????????????????????? | | ?????????????????????????????????????????????????? | | ?????????????????????????????????????????????????? | | ?????????????????????????????????????????????????? | | ?????????????????????????????????????????????????? | | ?????????????????????????????????????????????????? | | ?????????????????????????????????????????????????? | | ?????????????????????????????????????????????????? | | ?????????????????????????????????????????????????? | | ?????????????????????????????????????????????????? | | ?????????????????????????????????????????????????? | | ?????????????????????????????????????????????????? | | ?????????????????????????????????????????????????? | | ?????????????????????????????????????????????????? | | ?????????????????????????????????????????????????? | | ?????????????????????????????????????????????????? | | ?????????????????????????????????????????????????? | | ?????????????????????????????????????????????????? | | ?????????????????????????????????????????????????? | | ?????????????????????????????????????????????????? | | ?????????????????????????????????????????????????? | | ?????????????????????????????????????????????????? | | ?????????????????????????????????????????????????? | | ?????????????????????????????????????????????????? | | ?????????????????????##########??????????????????? | | ?????????????????????# s@%s #??????????????????? | | ?????????????????????# s"""s #??????????????????? | | ?????????????????????# """ #??????????????????? | | ????????????#????????# """ #??????????????????? | | ???????????? ????????# [ s #??????????????????? | | ???????????" "???????# """ #??????????????????? | | ########???T "???# k """ #??????????????????? | | ???" "???+ # """ #??????????????????? | | #?? ???# ?# #??????????????????? | | ! #?? !???# ########+#######????????????? | | #?? !???# #????????????? | | #?? ]???# #????????????? | | #?? ???# #????????????? | | ? #??#/#???########/####### #????????????? | | ??? #??# #?????# #?????? #????????????? | | ????? #??# #?????# #??????? #???????????? | | #######+#### ####### "S [#???????? #???????????? | | + """ #????????? #???????????? | | ###### "" #??????????#???????????? | | #????# #??????????????????????? | | ## ### #????########??????????????????????? | | ## #?# #??????????????????????????????????? | | ##//==!!#?# #??????????????????????????????????? | | ##//==!!#?# #??????????????????????????????????? | | #########?# #??????????????????????????????????? | +----------------------------------------------------+ Best States ------------- Heat Dissipation 28 Energy Generation 10 Energy Capacity 250 Matter Stores 300 Matter Capacity 300 Sight Range 16 Terrain Scan Density 10 Evasion (%) 55 Item Schematics ----------------- None Robot Schematics ------------------ None Fabricated ------------ Nothing Alien Tech Used ----------------- None Achievements -------------- None Challenges ------------ None Game ------ Seed TrapHardenedKinecellerator Manual? 0 Play Time 00:09:04 Cumulative 8.6 hours Start 2024.04.11 @ 09:25:22 End 2024.04.11 @ 09:32:40 Sessions 1 Manual Loads 0 Difficulty Rogue Special Mode None Game No. 33 Rogue 33 Adventurer 0 Explorer 0 Win Type - Total 0 Types 0/0/0/0/0/0/0/0/0 Lore% 11 Gallery% 13 Achievement% 12 Wizard Run 0 Options --------- Layout 1 ASCII 1 Keyboard 0 Movement Arrows Keybinds 0 Fullscreen 1 Font 18/SmallcapsGlow Map View 50x40 Zoom Use 0% Tactical HUD 0 Map Filters NONE Filters NONE Steam 1 RUN: 3229b243-87c3-4d82-8e1f-4125e48d87f2